bitfinex/quotes_BTCUSD_20220103
["timestamp","ask_amount","ask_price","bid_price","bid_amount"]
[1641181461919,0.205,46781.0,46780.0,0.697151]
[1641181462727,0.02660023,46785.0,46781.0,1.31]
[1641181462923,0.02660023,46785.0,46784.0,1.657151]
[1641181463120,0.02660023,46785.0,46784.0,2.3691496]
[1641181463320,0.02660023,46785.0,46784.0,1.0591496]
[1641181463721,0.02660023,46785.0,46784.0,1.29339355]
[1641181463922,0.02660023,46785.0,46784.0,2.72110533]
[1641181464220,0.12261169,46793.0,46785.0,1.31]
[1641181464423,0.12261169,46793.0,46792.0,0.403409]
[1641181464821,0.12261169,46793.0,46792.0,0.75056]
[1641181465223,0.12261169,46793.0,46792.0,2.53559493]
[1641181465423,0.12261169,46793.0,46792.0,2.63349493]
[1641181465649,0.12261169,46793.0,46792.0,2.75239857]
[1641181465650,0.11400169,46793.0,46792.0,2.75239857]
[1641181466043,0.11400169,46793.0,46792.0,0.86736364]
[1641181466245,0.11400169,46793.0,46792.0,0.92793377]
[1641181466643,0.11400169,46793.0,46792.0,0.94184698]
[1641181466844,0.11400169,46793.0,46792.0,0.92294334]
[1641181467151,0.11400169,46793.0,46792.0,1.17167919]
[1641181467946,0.11400169,46793.0,46792.0,0.86237321]
[1641181468146,0.11400169,46793.0,46792.0,0.88370486]
[1641181468346,0.11400169,46793.0,46792.0,0.92538999]
[1641181468548,0.11400169,46793.0,46792.0,0.94464062]
[1641181469494,0.10866468,46793.0,46792.0,0.88404228]
[1641181469697,0.10866468,46793.0,46792.0,0.90326918]
[1641181469897,0.10866468,46793.0,46792.0,2.03226918]
[1641181470794,0.10866468,46793.0,46792.0,1.94776324]
[1641181471695,0.10866468,46793.0,46792.0,1.96589672]
[1641181471895,0.10866468,46793.0,46792.0,1.92746]
[1641181472699,0.10866468,46793.0,46792.0,1.94753101]
[1641181472900,0.10866468,46793.0,46792.0,1.99753101]
[1641181473648,0.10866468,46793.0,46792.0,2.01084216]
[1641181473842,0.10866468,46793.0,46792.0,2.27282433]
[1641181474041,0.11727468,46793.0,46792.0,2.27282433]
[1641181474641,0.11727468,46793.0,46792.0,2.29132597]
[1641181474944,0.11727468,46793.0,46792.0,2.27301482]
[1641181475545,0.13867468,46793.0,46792.0,2.29132718]
[1641181475742,0.13867468,46793.0,46792.0,2.27282554]
[1641181477205,0.13867468,46793.0,46792.0,2.29266167]
[1641181477405,0.13867468,46793.0,46792.0,2.27434931]
[1641181477910,0.008609,46795.0,46793.0,1.61866468]
[1641181478111,0.008609,46795.0,46794.0,1.724051]
[1641181478307,0.008609,46795.0,46794.0,2.322551]
[1641181478506,0.017219,46795.0,46794.0,2.422551]
[1641181478707,0.002,46799.0,46796.0,0.04805598]
[1641181478907,0.002,46799.0,46798.0,0.39837205]
[1641181479107,0.002,46799.0,46798.0,0.54627205]
[1641181479308,0.002,46799.0,46798.0,0.49627205]
[1641181479509,0.002,46799.0,46798.0,0.445051]
[1641181479711,0.002,46799.0,46798.0,0.36615098]
[1641181479712,0.522,46799.0,46798.0,0.36615098]
[1641181479908,0.522,46799.0,46798.0,0.01899998]
[1641181480106,0.002,46799.0,46798.0,0.01899998]
[1641181480739,0.31020642,46799.0,46798.0,0.01899998]
[1641181480944,0.31020642,46799.0,46797.0,0.053395]
[1641181481442,0.82430312,46798.0,46797.0,0.053395]
[1641181481839,0.27430312,46798.0,46797.0,0.053395]
[1641181482042,0.32742642,46799.0,46797.0,0.053395]
[1641181483638,0.32242642,46799.0,46797.0,0.053395]
[1641181485287,0.01039177,46799.0,46797.0,0.053395]
[1641181486892,0.01008977,46799.0,46797.0,0.053395]
[1641181487292,0.30946583,46799.0,46797.0,0.053395]
[1641181487494,1.117151,46798.0,46794.0,0.053418]
[1641181487694,0.053418,46797.0,46794.0,0.053418]
[1641181488343,0.28494167,46796.0,46794.0,0.053418]
[1641181489141,0.053418,46797.0,46794.0,0.053418]
[1641181491346,0.28344382,46796.0,46794.0,0.053418]
[1641181491546,0.28344382,46796.0,46793.0,0.10866468]
[1641181491547,1.707151,46795.0,46793.0,0.10866468]
[1641181491746,1.79037339,46794.0,46793.0,0.10866468]
[1641181492019,1.93815639,46794.0,46793.0,0.10866468]
[1641181492419,2.08815639,46794.0,46793.0,0.10866468]
[1641181494519,0.86815639,46794.0,46793.0,0.10866468]
[1641181495519,0.72037339,46794.0,46793.0,0.10866468]
[1641181496349,0.91752439,46794.0,46793.0,0.10866468]
[1641181497453,0.91752439,46794.0,46793.0,2.11420187]
[1641181497651,0.72037339,46794.0,46793.0,2.11420187]
[1641181497852,0.26701083,46794.0,46793.0,2.11420187]
[1641181498454,0.54192907,46794.0,46793.0,2.11420187]
[1641181498753,0.54192907,46794.0,46793.0,2.13527027]
[1641181498954,0.69192907,46794.0,46793.0,2.13527027]
[1641181499153,0.69192907,46794.0,46793.0,0.12973308]
[1641181499388,1.03908007,46794.0,46793.0,0.12973308]
[1641181499989,1.03908007,46794.0,46793.0,0.10866468]
[1641181502194,0.26701083,46794.0,46793.0,0.10866468]
[1641181503447,0.41701083,46794.0,46793.0,0.10866468]
[1641181503847,0.76416183,46794.0,46793.0,0.10866468]
[1641181504251,1.03887961,46794.0,46793.0,0.10866468]
[1641181504850,0.88887961,46794.0,46793.0,0.10866468]
[1641181505048,0.61416183,46794.0,46793.0,0.10866468]
[1641181505948,0.76416183,46794.0,46793.0,0.10866468]
[1641181506752,0.13162175,46779.0,46776.0,0.38649571]
[1641181507010,0.00126013,46776.0,46768.0,1.09143909]
[1641181507203,0.053442,46774.0,46768.0,1.09143909]
[1641181507406,0.119106,46774.0,46768.0,1.09143909]
[1641181507704,0.24545289,46773.0,46768.0,1.09143909]
[1641181507905,0.27037262,46770.0,46768.0,1.09143909]
[1641181508104,0.43991919,46769.0,46768.0,1.09143909]
[1641181508302,0.40730952,46769.0,46768.0,1.09143909]
[1641181508505,0.053451,46766.0,46763.0,0.05345]
[1641181509404,0.41729454,46769.0,46758.0,0.106902]
[1641181509405,0.52346977,46765.0,46758.0,0.106902]
[1641181509605,0.26802114,46764.0,46758.0,0.106902]
[1641181509811,0.26683276,46764.0,46757.0,0.06416022]
[1641181510106,0.3064159,46765.0,46756.0,1.13020699]
[1641181510306,0.3064159,46765.0,46758.0,0.26330686]
[1641181510949,0.31588909,46765.0,46758.0,0.26330686]
[1641181511148,0.31588909,46765.0,46761.0,0.403452]
[1641181511747,0.3064159,46765.0,46761.0,0.403452]
[1641181511947,0.31544974,46765.0,46761.0,0.403452]
[1641181512953,0.32519197,46765.0,46761.0,0.403452]
[1641181513150,0.31615813,46765.0,46761.0,0.403452]
[1641181514057,0.32642167,46765.0,46761.0,0.403452]
[1641181514253,0.01026354,46765.0,46761.0,0.403452]
[1641181514495,0.01026354,46765.0,46763.0,0.00410976]
[1641181515099,0.00995031,46768.0,46763.0,0.05879649]
[1641181515297,0.00995031,46768.0,46764.0,0.23702586]
[1641181515496,0.00995031,46768.0,46765.0,1.476151]
[1641181515696,0.00995031,46768.0,46765.0,0.347151]
[1641181516195,0.00995031,46768.0,46766.0,0.053439]
[1641181516397,0.00995031,46768.0,46767.0,0.347151]
[1641181516799,0.03168822,46777.0,46767.0,0.347151]
[1641181516997,0.03168822,46777.0,46766.0,0.50492665]
[1641181517196,0.01294414,46777.0,46766.0,0.50492665]
[1641181517800,0.00804414,46777.0,46770.0,0.05344004]
[1641181518001,0.00804414,46777.0,46772.0,0.053441]
[1641181518255,0.347151,46776.0,46772.0,0.053441]
[1641181519055,0.347151,46776.0,46770.0,0.053444]
[1641181519056,0.36913482,46776.0,46770.0,0.053444]
[1641181519259,0.36913482,46776.0,46768.0,0.05344303]
[1641181519260,0.46913482,46776.0,46766.0,0.45148765]
[1641181519455,0.46913482,46776.0,46765.0,0.106878]
[1641181519855,0.46913482,46776.0,46770.0,0.00410976]
[1641181520056,0.81201235,46776.0,46770.0,0.00410976]
[1641181520256,0.69002853,46776.0,46770.0,0.00410976]
[1641181520455,0.79002853,46776.0,46770.0,0.00410976]
[1641181520858,0.91779007,46771.0,46770.0,0.00410976]
[1641181521060,0.64557307,46771.0,46770.0,0.00410976]
[1641181522195,0.6661034,46771.0,46770.0,0.00410976]
[1641181523193,0.68432605,46771.0,46770.0,0.00410976]
[1641181523496,0.66379572,46771.0,46770.0,0.00410976]
[1641181524494,0.61379572,46771.0,46770.0,0.00410976]
[1641181524695,0.63345418,46771.0,46770.0,0.00410976]
[1641181524895,0.61523153,46771.0,46770.0,0.00410976]
[1641181525096,0.63504719,46771.0,46770.0,0.00410976]
[1641181525947,1.31,46770.0,46761.0,0.35]
[1641181526148,1.31,46770.0,46760.0,0.00804405]
[1641181526149,0.0012195,46764.0,46760.0,0.00804405]
[1641181526746,0.44129531,46763.0,46760.0,0.00804405]
[1641181526955,0.23935614,46764.0,46760.0,0.00804405]
[1641181527146,0.36482268,46763.0,46760.0,0.00804405]
[1641181528146,0.37494886,46763.0,46760.0,0.00804405]
[1641181528346,0.05408155,46763.0,46757.0,0.31269804]
[1641181528547,0.01061233,46764.0,46757.0,0.05345902]
[1641181528945,0.00367,46763.0,46757.0,0.05345902]
[1641181529145,0.00367,46763.0,46757.0,0.07273747]
[1641181529427,0.00933806,46765.0,46758.0,1.21572133]
[1641181529637,0.00933806,46765.0,46763.0,0.05466332]
[1641181529822,0.00933806,46765.0,46764.0,2.75533139]
[1641181530025,0.00933806,46765.0,46764.0,1.67533139]
[1641181530220,0.00933806,46765.0,46764.0,1.57533139]
[1641181530421,0.01074768,46771.0,46768.0,0.05344]
[1641181530621,0.01074768,46771.0,46769.0,0.448491]
[1641181530822,0.01074768,46771.0,46769.0,0.0479]
[1641181531421,0.37326275,46776.0,46770.0,0.05344]
[1641181531721,0.37326275,46776.0,46765.0,0.02000745]
[1641181531722,0.347151,46775.0,46765.0,0.02000745]
[1641181532223,0.447151,46775.0,46765.0,0.02000745]
[1641181532420,0.447151,46775.0,46765.0,0.05345]
[1641181532620,0.447151,46775.0,46767.0,0.05344845]
[1641181532821,0.44546359,46769.0,46764.0,0.01052335]
[1641181533020,0.05,46768.0,46764.0,0.01052335]
[1641181533450,0.05,46768.0,46760.0,0.12574329]
[1641181533654,0.05,46768.0,46761.0,0.053451]
[1641181533849,0.31211592,46768.0,46761.0,0.053451]
[1641181534155,0.31211592,46768.0,46764.0,0.05345322]
[1641181535652,0.33341737,46768.0,46764.0,0.05345322]
[1641181535854,0.33341737,46768.0,46759.0,0.1273057]
[1641181536251,0.33341737,46768.0,46759.0,0.14782446]
[1641181536453,0.31211592,46768.0,46761.0,0.053451]
[1641181536655,0.3328935,46768.0,46764.0,0.05345322]
[1641181536903,0.3328935,46768.0,46760.0,0.10690103]
[1641181537103,0.32780788,46768.0,46760.0,0.10690103]
[1641181537508,0.28688976,46761.0,46760.0,0.10690103]
[1641181537704,0.31708309,46768.0,46760.0,0.10690103]
[1641181537705,0.67514352,46768.0,46760.0,0.10690103]
[1641181537903,0.41708309,46768.0,46760.0,0.10690103]
[1641181538504,0.4070303,46768.0,46760.0,0.10690103]
[1641181538703,0.41621645,46768.0,46760.0,0.10690103]
[1641181538904,0.24108056,46763.0,46760.0,0.10690103]
[1641181539104,0.29108056,46763.0,46760.0,0.10690103]
[1641181539305,0.41417777,46762.0,46760.0,0.10690103]
[1641181539607,0.51417777,46762.0,46756.0,0.02136405]
[1641181540405,0.31195352,46759.0,46752.0,0.26234662]
[1641181540659,0.36195352,46759.0,46752.0,0.26234662]
[1641181540851,0.36195352,46759.0,46750.0,24.68062354]
[1641181541052,0.36195352,46759.0,46750.0,24.73408854]
[1641181541451,0.37126214,46759.0,46750.0,24.71319976]
[1641181541668,0.37126214,46759.0,46754.0,0.05346543]
[1641181542251,0.38205453,46759.0,46754.0,0.05346543]
[1641181542852,0.38205453,46759.0,46756.0,0.05346586]
[1641181543252,0.39246907,46759.0,46756.0,0.05346586]
[1641181543455,0.37236806,46759.0,46756.0,0.05346586]
[1641181543854,0.37236806,46759.0,46754.0,0.05346755]
[1641181544052,0.47236806,46759.0,46754.0,0.05346755]
[1641181544251,0.48313798,46759.0,46754.0,0.05346755]
[1641181544501,0.47272344,46759.0,46752.0,0.1]
[1641181545303,0.48264425,46759.0,46752.0,0.1]
[1641181545500,0.47187433,46759.0,46752.0,0.1]
[1641181545701,0.053472,46757.0,46752.0,0.1]
[1641181545902,0.053472,46757.0,46752.0,0.15347042]
[1641181546101,0.053472,46757.0,46752.0,0.1]
[1641181546604,0.00129133,46754.0,46752.0,0.1]
[1641181546803,1.013478,46753.0,46752.0,0.1]
[1641181547005,1.063478,46753.0,46752.0,0.1]
[1641181547204,0.15,46753.0,46752.0,0.1]
[1641181547604,0.13774031,46753.0,46752.0,0.1]
[1641181548447,0.03774031,46753.0,46752.0,0.1]
[1641181548650,0.38052068,46758.0,46752.0,0.1]
[1641181548848,0.28052068,46758.0,46752.0,0.1]
[1641181549051,0.40292504,46754.0,46752.0,0.1]
[1641181549251,0.62654198,46754.0,46753.0,6.299e-05]
[1641181549453,1.01664694,46754.0,46753.0,6.299e-05]
[1641181549749,0.73002298,46754.0,46753.0,6.299e-05]
[1641181549950,2.04002298,46754.0,46753.0,6.299e-05]
[1641181550251,2.19002298,46754.0,46753.0,6.299e-05]
[1641181550561,2.692377,46751.0,46750.0,18.40850711]
[1641181550754,2.692377,46751.0,46750.0,15.90798829]
[1641181550755,2.690947,46751.0,46750.0,15.90798829]
[1641181550957,2.690947,46751.0,46750.0,9.29881205]
[1641181550958,2.24708593,46751.0,46750.0,9.29881205]
[1641181551150,2.24708593,46751.0,46750.0,8.29931205]
[1641181551354,2.35006935,46751.0,46750.0,5.45691205]
[1641181551551,2.35006935,46751.0,46750.0,4.45741205]
[1641181551552,4.06874285,46751.0,46750.0,4.45741205]
[1641181551749,4.31589385,46751.0,46750.0,3.45781205]
[1641181552411,4.43631526,46751.0,46750.0,3.45781205]
[1641181552613,4.41726781,46751.0,46750.0,3.45781205]
[1641181552813,4.46006781,46751.0,46750.0,3.45781205]
[1641181553015,3.23106781,46751.0,46750.0,3.45781205]
[1641181553216,3.22106781,46751.0,46750.0,3.45781205]
[1641181553612,3.21606781,46751.0,46750.0,3.45781205]
[1641181554013,3.23787682,46751.0,46750.0,3.45781205]
[1641181554215,3.21245541,46751.0,46750.0,3.45781205]
[1641181554414,3.23431441,46751.0,46750.0,3.45781205]
[1641181554614,3.2125054,46751.0,46750.0,3.45781205]
[1641181555215,4.3415054,46751.0,46750.0,3.45781205]
[1641181555415,4.36274289,46751.0,46750.0,3.45781205]
[1641181555662,4.34088389,46751.0,46750.0,3.45781205]
[1641181555859,1.32455854,46751.0,46750.0,3.45781205]
[1641181556054,1.06357449,46751.0,46750.0,3.45781205]
[1641181556256,1.01008849,46751.0,46750.0,3.45781205]
[1641181556454,1.03039611,46751.0,46750.0,3.45781205]
[1641181556654,1.00915862,46751.0,46750.0,3.45781205]
[1641181556854,0.66200762,46751.0,46750.0,3.45781205]
[1641181557255,0.63110763,46751.0,46750.0,3.45781205]
[1641181557454,0.65217934,46751.0,46750.0,3.45781205]
[1641181557657,0.63187172,46751.0,46750.0,3.45781205]
[1641181558657,0.65284339,46751.0,46750.0,3.45781205]
[1641181558856,1.82284339,46751.0,46750.0,3.45781205]
[1641181559058,2.26999439,46751.0,46750.0,3.45781205]
[1641181559508,2.35984213,46751.0,46750.0,3.45781205]
[1641181559706,2.31779875,46751.0,46750.0,3.45781205]
[1641181560510,1.19798154,46751.0,46750.0,3.45781205]
[1641181560710,1.17978862,46751.0,46750.0,3.45781205]
[1641181561112,0.97978862,46751.0,46750.0,3.45781205]
[1641181561510,1.00107201,46751.0,46750.0,3.45781205]
[1641181561711,0.9792344,46751.0,46750.0,3.45781205]
[1641181562115,0.6320834,46751.0,46750.0,3.45781205]
[1641181562413,0.7320834,46751.0,46750.0,3.45781205]
[1641181562613,0.83024054,46751.0,46750.0,3.45781205]
[1641181562813,1.22024054,46751.0,46750.0,3.45781205]
[1641181563152,1.22024054,46751.0,46750.0,3.45281205]
[1641181563345,0.83024054,46751.0,46750.0,3.45281205]
[1641181563549,0.84865675,46751.0,46750.0,3.45281205]
[1641181563748,0.82921622,46751.0,46750.0,3.45281205]
[1641181564546,0.84894017,46751.0,46750.0,3.45281205]
[1641181564748,0.83052396,46751.0,46750.0,3.45281205]
[1641181564948,0.82552396,46751.0,46750.0,3.45281205]
[1641181565551,0.84550324,46751.0,46750.0,3.45281205]
[1641181565751,0.82577929,46751.0,46750.0,3.45281205]
[1641181566157,0.63077929,46751.0,46750.0,3.45281205]
[1641181566354,0.63077929,46751.0,46750.0,3.80177074]
[1641181566552,0.64878852,46751.0,46750.0,3.80177074]
[1641181566755,0.62880924,46751.0,46750.0,3.80177074]
[1641181568027,0.72880924,46751.0,46750.0,3.80177074]
[1641181568230,0.7507955,46751.0,46750.0,3.80177074]
[1641181568428,0.73278627,46751.0,46750.0,3.80177074]
[1641181568736,0.72361857,46751.0,46750.0,3.80177074]
[1641181569329,0.72361857,46751.0,46750.0,3.45281205]
[1641181569530,0.74266827,46751.0,46750.0,3.44781205]
[1641181569730,0.72459724,46751.0,46750.0,3.42781205]
[1641181570663,0.72459724,46751.0,46750.0,3.44706058]
[1641181570855,0.723745,46751.0,46750.0,3.44706058]
[1641181571657,0.70554754,46751.0,46750.0,3.44710872]
[1641181571855,0.72558636,46751.0,46750.0,3.44710872]
[1641181572657,0.72558636,46751.0,46750.0,3.46614879]
[1641181572858,0.72556892,46751.0,46750.0,3.44685212]
[1641181573761,0.72627057,46751.0,46750.0,3.42781205]
[1641181575403,0.72401288,46751.0,46750.0,3.42781205]
[1641181575607,0.74317787,46751.0,46750.0,3.42781205]
[1641181575804,0.72471253,46751.0,46750.0,3.41781205]
[1641181576606,0.7451575,46751.0,46750.0,3.41781205]
[1641181576804,0.71599251,46751.0,46750.0,3.41781205]
[1641181577204,0.71599251,46751.0,46750.0,3.41281205]
[1641181577604,0.73760027,46751.0,46750.0,3.41281205]
[1641181577805,0.7171553,46751.0,46750.0,3.41281205]
[1641181578554,0.7706353,46751.0,46750.0,3.41281205]
[1641181578856,0.7688292,46751.0,46750.0,3.41281205]
[1641181579254,0.7592116,46751.0,46750.0,3.41281205]
[1641181579654,0.78064756,46751.0,46750.0,3.41281205]
[1641181579855,0.77564756,46751.0,46750.0,3.41281205]
[1641181580653,0.79470371,46751.0,46750.0,3.41281205]
[1641181580855,0.75346609,46751.0,46750.0,3.41281205]
[1641181581662,0.77371622,46751.0,46750.0,3.41272185]
[1641181581904,0.75466007,46751.0,46750.0,3.41272185]
[1641181582307,0.75466007,46751.0,46750.0,3.41263165]
[1641181582706,0.77401995,46751.0,46750.0,3.41263165]
[1641181582907,0.75376982,46751.0,46750.0,3.41263165]
[1641181583609,0.77308304,46751.0,46750.0,3.41263165]
[1641181583808,0.75372316,46751.0,46750.0,3.41263165]
[1641181584706,0.77520693,46751.0,46750.0,3.41263165]
[1641181585665,0.79691796,46751.0,46750.0,3.41263165]
[1641181585858,0.80612097,46751.0,46750.0,3.41263165]
[1641181586659,0.82455987,46751.0,46750.0,3.41263165]
[1641181586864,0.80284884,46751.0,46750.0,3.41263165]
[1641181587658,0.82412825,46751.0,46750.0,3.41263165]
[1641181587858,0.80568935,46751.0,46750.0,3.41263165]
[1641181588758,0.8270676,46751.0,46750.0,3.41263165]
[1641181588960,0.8270676,46751.0,46750.0,3.41254145]
[1641181589159,0.8270676,46751.0,46750.0,3.41245125]
[1641181589707,0.81731723,46751.0,46750.0,3.41245125]
[1641181589910,0.7235876,46751.0,46750.0,3.41245125]
[1641181590308,0.74312019,46751.0,46750.0,3.74107882]
[1641181590508,0.70046253,46751.0,46750.0,3.74107882]
[1641181590711,0.72100205,46751.0,46750.0,3.74107882]
[1641181590909,0.70146946,46751.0,46750.0,3.74107882]
[1641181591709,0.72303881,46751.0,46750.0,3.41245125]
[1641181591912,0.70249929,46751.0,46750.0,3.41245125]
[1641181592710,0.72263436,46751.0,46750.0,3.41245125]
[1641181593574,0.68092994,46751.0,46750.0,3.41245125]
[1641181593773,0.70291352,46751.0,46750.0,3.41245125]
[1641181594775,0.72387795,46751.0,46750.0,3.41245125]
[1641181594974,0.70189437,46751.0,46750.0,3.41245125]
[1641181595776,0.72002999,46751.0,46750.0,3.41245125]
[1641181596079,0.69906556,46751.0,46750.0,3.41245125]
[1641181596777,0.71748942,46751.0,46750.0,3.41245125]
[1641181597002,0.6993538,46751.0,46750.0,3.41245125]
[1641181597702,0.72060349,46751.0,46750.0,3.41245125]
[1641181598504,0.68092994,46751.0,46750.0,3.41245125]
[1641181598704,0.70209188,46751.0,46750.0,3.41245125]
[1641181599507,0.68092994,46751.0,46750.0,3.41245125]
[1641181599706,0.7008302,46751.0,46750.0,3.41245125]
[1641181600755,0.72125371,46751.0,46750.0,3.41245125]
[1641181600955,0.70135345,46751.0,46750.0,3.41245125]
[1641181601760,0.72211705,46751.0,46750.0,3.41245125]
[1641181601960,0.70169354,46751.0,46750.0,3.40745125]
[1641181602759,0.72325096,46751.0,46750.0,3.40745125]
[1641181602957,0.70248736,46751.0,46750.0,3.40745125]
[1641181603760,0.72379168,46751.0,46750.0,3.40745125]
[1641181603962,0.70223426,46751.0,46750.0,3.40745125]
[1641181604792,0.72317031,46751.0,46750.0,3.40745125]
[1641181605593,0.68092994,46751.0,46750.0,3.40745125]
[1641181605794,0.75289,46751.0,46750.0,3.40745125]
[1641181605995,0.70289,46751.0,46750.0,3.40745125]
[1641181606801,0.62341316,46751.0,46750.0,3.40870834]
[1641181607099,0.00808089,46755.0,46751.0,1.15357853]
[1641181607300,0.55205237,46757.0,46754.0,0.00124917]
[1641181607500,0.55205237,46761.0,46755.0,0.347151]
[1641181607704,0.55205237,46761.0,46760.0,0.00120578]
[1641181608159,0.71756118,46763.0,46760.0,0.00120578]
[1641181608354,0.71756118,46768.0,46760.0,0.00120578]
[1641181608552,0.347151,46767.0,46764.0,0.30637365]
[1641181608852,0.347151,46767.0,46764.0,0.35983265]
[1641181609052,0.447151,46767.0,46764.0,0.35983265]
[1641181609254,0.347151,46767.0,46764.0,0.35983265]
[1641181609455,0.1,46767.0,46764.0,0.35983265]
[1641181609654,0.1,46767.0,46764.0,0.57366864]
[1641181609857,0.1,46767.0,46764.0,0.59375982]
[1641181610455,0.1,46767.0,46764.0,0.54030082]
[1641181610654,0.053461,46768.0,46764.0,0.48684182]
[1641181610856,0.87236118,46771.0,46765.0,0.10692042]
[1641181611056,0.92236118,46771.0,46766.0,0.10691793]
[1641181611256,0.71756118,46770.0,46766.0,0.10691793]
[1641181611755,0.81756118,46770.0,46766.0,0.10691793]
[1641181611994,0.1,46770.0,46766.0,0.10691793]
[1641181612396,0.1,46770.0,46768.0,0.053459]
[1641181612594,0.1,46771.0,46768.0,0.053459]
[1641181612797,0.053459,46770.0,46768.0,0.053459]
[1641181613796,0.043459,46770.0,46768.0,0.053459]
[1641181614199,0.043459,46770.0,46768.0,0.1069192]
[1641181614998,0.05,46771.0,46768.0,0.1069192]
[1641181615669,1.02447518,46776.0,46771.0,0.053459]
[1641181615864,0.347151,46775.0,46769.0,0.1069156]
[1641181616164,0.05,46772.0,46769.0,0.1069156]
[1641181616365,0.1,46775.0,46769.0,0.1069156]
[1641181616567,0.71756118,46777.0,46772.0,0.053451]
[1641181616966,0.58012759,46779.0,46772.0,0.053451]
[1641181617667,0.053451,46777.0,46774.0,0.05345017]
[1641181617866,0.147783,46776.0,46775.0,0.053453]
[1641181618865,0.053451,46777.0,46775.0,0.053453]
[1641181619065,0.05345,46779.0,46777.0,0.05345]
[1641181619269,0.347151,46778.0,46777.0,0.05345]
[1641181619516,0.347151,46778.0,46777.0,0.0546692]
[1641181619711,0.58012759,46784.0,46777.0,0.0546692]
[1641181619913,0.58012759,46784.0,46777.0,0.0012192]
[1641181619914,0.1,46778.0,46777.0,0.0012192]
[1641181620112,0.053448,46781.0,46779.0,0.053448]
[1641181620314,0.347151,46780.0,46779.0,0.053448]
[1641181620516,0.65186014,46780.0,46779.0,0.053448]
[1641181620717,0.75186014,46780.0,46779.0,0.053448]
[1641181620913,1.09318204,46780.0,46776.0,0.05345495]
[1641181621112,0.053457,46777.0,46776.0,0.05345495]
[1641181621315,0.20124,46777.0,46776.0,0.05345495]
[1641181621514,0.25124,46777.0,46776.0,0.05345495]
[1641181623270,0.62667864,46777.0,46773.0,0.053455]
[1641181623467,0.053459,46773.0,46771.0,0.00808923]
[1641181623667,0.347151,46774.0,46771.0,0.00808923]
[1641181623668,1.93331398,46772.0,46771.0,0.00808923]
[1641181623864,2.03331398,46772.0,46771.0,0.00808923]
[1641181624064,2.13331398,46772.0,46771.0,0.00808923]
[1641181624365,0.395683,46772.0,46765.0,0.10692046]
[1641181624565,0.053464,46769.0,46765.0,0.10692046]
[1641181624766,0.0479,46768.0,46765.0,0.10692046]
[1641181625263,0.0479,46768.0,46765.0,0.16038446]
[1641181625763,0.0479,46768.0,46766.0,0.05346017]
[1641181626763,0.0479,46768.0,46765.0,0.053464]
[1641181627802,0.053464,46767.0,46765.0,0.053464]
[1641181628003,0.0479,46766.0,46765.0,0.053464]
[1641181629607,0.0479,46766.0,46762.0,0.01893882]
[1641181629608,0.47245124,46766.0,46762.0,0.01893882]
[1641181629806,0.35560426,46765.0,46762.0,0.01893882]
[1641181630006,1.277151,46763.0,46762.0,0.03857534]
[1641181630205,1.277151,46763.0,46762.0,0.01963652]
[1641181630206,2.0032824,46763.0,46762.0,0.01963652]
[1641181630405,2.1032824,46763.0,46762.0,0.01963652]
[1641181630682,1.2232824,46763.0,46762.0,0.01963652]
[1641181631269,0.93189911,46763.0,46758.0,0.05347122]
[1641181631568,0.93189911,46763.0,46757.0,0.41016032]
[1641181631569,0.84382486,46763.0,46757.0,0.41016032]
[1641181631767,0.53127511,46763.0,46757.0,0.41016032]
[1641181632167,0.53127511,46763.0,46757.0,0.429276]
[1641181632568,0.53127511,46763.0,46760.0,0.05346936]
[1641181632770,0.05347,46762.0,46757.0,0.429276]
[1641181632971,0.0479,46769.0,46758.0,0.00120359]
[1641181633170,0.0479,46769.0,46761.0,0.053463]
[1641181633773,0.58012759,46765.0,46761.0,0.053463]
[1641181634171,0.73012759,46765.0,46761.0,0.053463]
[1641181634411,0.78012759,46765.0,46761.0,0.05346613]
[1641181634814,0.73012759,46765.0,46761.0,0.05346613]
[1641181635010,0.78012759,46765.0,46761.0,0.05346613]
[1641181635211,0.58012759,46764.0,46761.0,0.05346613]
[1641181635411,0.58012759,46764.0,46761.0,0.10693013]
[1641181635611,0.68012759,46764.0,46761.0,0.05346613]
[1641181636413,0.1,46764.0,46761.0,0.05346613]
[1641181636612,0.78012759,46765.0,46761.0,0.05346613]
[1641181637015,0.2,46765.0,46763.0,0.05346267]
[1641181637414,0.05,46765.0,46763.0,0.05346267]
[1641181637615,0.82802759,46766.0,46763.0,0.05346267]
[1641181637815,0.347151,46765.0,46763.0,0.05346267]
[1641181638270,0.447151,46765.0,46763.0,0.05346267]
[1641181639071,0.447151,46765.0,46762.0,0.02179305]
[1641181639272,0.500618,46765.0,46760.0,0.05346606]
[1641181639472,0.153467,46765.0,46760.0,0.05346606]
[1641181639675,0.053467,46765.0,46758.0,0.00120359]
[1641181639874,0.82802759,46766.0,46758.0,0.00120359]
[1641181640275,0.88149259,46766.0,46762.0,0.05346437]
[1641181640473,0.347151,46765.0,46762.0,0.05346437]
[1641181640674,0.447151,46765.0,46762.0,0.05346437]
[1641181641575,0.447151,46765.0,46762.0,0.10692637]
[1641181642811,0.447151,46765.0,46762.0,0.44126198]
[1641181643011,0.1,46765.0,46762.0,0.44126198]
[1641181643412,0.82802759,46766.0,46762.0,0.38779761]
[1641181644017,0.82802759,46766.0,46763.0,0.35358894]
[1641181644313,0.2479,46766.0,46763.0,0.35358894]
[1641181644713,0.1479,46766.0,46763.0,0.35358894]
[1641181645113,0.68012759,46767.0,46763.0,0.35358894]
[1641181645317,0.58012759,46767.0,46763.0,0.35358894]
[1641181645675,0.58012759,46767.0,46764.0,0.05346126]
[1641181645965,0.58012759,46767.0,46764.0,0.10691426]
[1641181646162,0.58012759,46767.0,46764.0,0.053453]
[1641181646367,0.71756118,46769.0,46764.0,0.053453]
[1641181646567,0.58012759,46773.0,46763.0,0.32063353]
[1641181646766,0.58012759,46773.0,46768.0,0.053456]
[1641181646963,0.347151,46772.0,46766.0,0.10690615]
[1641181647164,1.02727859,46772.0,46766.0,0.10690615]
[1641181647965,0.447151,46772.0,46766.0,0.10690615]
[1641181648164,0.58012759,46773.0,46766.0,0.10690615]
[1641181648363,0.58012759,46773.0,46770.0,0.0534522]
[1641181648563,0.347151,46772.0,46769.0,0.10690418]
[1641181649613,0.347151,46772.0,46770.0,0.053452]
[1641181649814,0.497151,46772.0,46770.0,0.053452]
[1641181650614,0.447151,46772.0,46770.0,0.10690327]
[1641181650818,0.58012759,46774.0,46771.0,0.053447]
[1641181651015,0.58012759,46774.0,46771.0,0.16033733]
[1641181651613,0.58012759,46774.0,46772.0,0.31904361]
[1641181651819,0.58012759,46774.0,46772.0,0.47937478]
[1641181652016,0.58012759,46777.0,46773.0,0.053443]
[1641181652216,0.73012759,46777.0,46774.0,0.10688486]
[1641181652415,0.68012759,46777.0,46774.0,0.10688486]